[Event "December 5 Early 2023"]
[Site "https://www.chess.com"]
[Date "2023.12.05"]
[Round "6"]
[White "Firouzja, Alireza"]
[Black "Oparin, Grigoriy"]
[Result "1-0"]
[Board "1"]
[TimeControl "180+1"]
[WhiteFideId "12573981"]
[BlackFideId "24125890"]
[WhiteElo "3177"]
[BlackElo "3064"]
[WhiteTeam "FRA"]
[BlackTeam "USA"]
[WhiteClock "0:00:17"]
[BlackClock "0:00:04"]

1. e4 {[%clk 0:03:00]}  c5 {[%clk 0:03:00]} 2. Nf3 {[%clk 0:03:01]}  Nc6 {[%clk 0:03:00]} 3. d4 {[%clk 0:02:56]}  cxd4 {[%clk 0:03:00]} 4. Nxd4 {[%clk 0:02:57]}  Nf6 {[%clk 0:03:00]} 5. Nc3 {[%clk 0:02:57]}  e6 {[%clk 0:03:00]} 6. Be2 {[%clk 0:02:49]}  d6 {[%clk 0:02:56]} 7. O-O {[%clk 0:02:48]}  Be7 {[%clk 0:02:57]} 8. Be3 {[%clk 0:02:48]}  O-O {[%clk 0:02:57]} 9. a4 {[%clk 0:02:45]}  a6 {[%clk 0:02:56]} 10. f4 {[%clk 0:02:39]}  Bd7 {[%clk 0:02:54]} 11. Nb3 {[%clk 0:02:38]}  Na5 {[%clk 0:02:42]} 12. Nd2 {[%clk 0:02:28]}  Rc8 {[%clk 0:02:38]} 13. Bd3 {[%clk 0:02:27]}  Qc7 {[%clk 0:02:11]} 14. g4 {[%clk 0:02:24]}  Nc6 {[%clk 0:02:03]} 15. g5 {[%clk 0:02:21]}  Ne8 {[%clk 0:02:03]} 16. Qh5 {[%clk 0:02:18]}  Nb4 {[%clk 0:01:51]} 17. Rf3 {[%clk 0:02:14]}  Nxd3 {[%clk 0:01:40]} 18. cxd3 {[%clk 0:02:15]}  d5 {[%clk 0:01:41]} 19. Rh3 {[%clk 0:01:29]}  h6 {[%clk 0:01:41]} 20. f5 {[%clk 0:01:29]}  exf5 {[%clk 0:00:50]} 21. Nxd5 {[%clk 0:01:25]}  Qd8 {[%clk 0:00:51]} 22. gxh6 {[%clk 0:01:15]}  g6 {[%clk 0:00:51]} 23. h7+ {[%clk 0:01:16]}  Kh8 {[%clk 0:00:51]} 24. Qh6 {[%clk 0:01:17]}  Ng7 {[%clk 0:00:39]} 25. Bd4 {[%clk 0:01:12]}  f6 {[%clk 0:00:40]} 26. Nf4 {[%clk 0:00:42]}  Be8 {[%clk 0:00:38]} 27. Nf3 {[%clk 0:00:31]}  fxe4 {[%clk 0:00:35]} 28. dxe4 {[%clk 0:00:30]}  g5 {[%clk 0:00:30]} 29. Rg3 {[%clk 0:00:30]}  Rc5 {[%clk 0:00:13]} 30. Rd1 {[%clk 0:00:20]}  Bf7 {[%clk 0:00:12]} 31. Nxg5 {[%clk 0:00:16]}  Qb6 {[%clk 0:00:04]} 32. Nxf7+ {[%clk 0:00:16]}  Rxf7 {[%clk 0:00:04]} 33. Ng6# {[%clk 0:00:17]} 1-0

[Event "December 5 Early 2023"]
[Site "https://www.chess.com"]
[Date "2023.12.05"]
[Round "6"]
[White "Duda, Jan-Krzysztof"]
[Black "Caruana, Fabiano"]
[Result "1-0"]
[Board "2"]
[TimeControl "180+1"]
[WhiteFideId "1170546"]
[BlackFideId "2020009"]
[WhiteElo "3060"]
[BlackElo "3087"]
[WhiteTeam "POL"]
[BlackTeam "USA"]
[WhiteClock "0:00:03"]
[BlackClock "0:00:00"]

1. d4 {[%clk 0:03:00]}  Nf6 {[%clk 0:03:00]} 2. Bg5 {[%clk 0:03:01]}  Nc6 {[%clk 0:02:58]} 3. Bxf6 {[%clk 0:02:56]}  gxf6 {[%clk 0:02:57]} 4. e3 {[%clk 0:02:56]}  e5 {[%clk 0:02:50]} 5. Nf3 {[%clk 0:02:54]}  d5 {[%clk 0:02:49]} 6. c3 {[%clk 0:02:41]}  a6 {[%clk 0:02:47]} 7. Nbd2 {[%clk 0:02:38]}  Be6 {[%clk 0:02:46]} 8. g3 {[%clk 0:02:36]}  Qd7 {[%clk 0:02:45]} 9. Bg2 {[%clk 0:02:09]}  h5 {[%clk 0:02:45]} 10. h4 {[%clk 0:02:00]}  Bd6 {[%clk 0:02:41]} 11. a4 {[%clk 0:01:55]}  e4 {[%clk 0:02:37]} 12. Ng1 {[%clk 0:01:54]}  Ne7 {[%clk 0:02:38]} 13. c4 {[%clk 0:01:31]}  c6 {[%clk 0:02:37]} 14. c5 {[%clk 0:01:27]}  Bc7 {[%clk 0:02:37]} 15. b4 {[%clk 0:01:28]}  Bg4 {[%clk 0:02:33]} 16. Bh3 {[%clk 0:01:23]}  f5 {[%clk 0:02:05]} 17. Qb3 {[%clk 0:01:22]}  f4 {[%clk 0:01:57]} 18. Bxg4 {[%clk 0:01:13]}  Qxg4 {[%clk 0:01:42]} 19. exf4 {[%clk 0:01:13]}  Nf5 {[%clk 0:01:43]} 20. Qc3 {[%clk 0:01:06]}  O-O {[%clk 0:01:38]} 21. Nf1 {[%clk 0:01:01]}  e3 {[%clk 0:01:31]} 22. fxe3 {[%clk 0:00:56]}  Rfe8 {[%clk 0:01:19]} 23. Kf2 {[%clk 0:00:52]}  Re6 {[%clk 0:00:36]} 24. Nf3 {[%clk 0:00:52]}  Rae8 {[%clk 0:00:36]} 25. Re1 {[%clk 0:00:50]}  b6 {[%clk 0:00:31]} 26. cxb6 {[%clk 0:00:38]}  Bxb6 {[%clk 0:00:32]} 27. Ne5 {[%clk 0:00:38]}  Qg7 {[%clk 0:00:31]} 28. a5 {[%clk 0:00:30]}  Ba7 {[%clk 0:00:25]} 29. Rg1 {[%clk 0:00:29]}  f6 {[%clk 0:00:21]} 30. g4 {[%clk 0:00:27]}  Nd6 {[%clk 0:00:18]} 31. Nd2 {[%clk 0:00:27]}  Qh7 {[%clk 0:00:04]} 32. gxh5+ {[%clk 0:00:24]}  Kf8 {[%clk 0:00:04]} 33. Ng6+ {[%clk 0:00:22]}  Kf7 {[%clk 0:00:05]} 34. Qd3 {[%clk 0:00:20]}  Qxh5 {[%clk 0:00:04]} 35. Qxa6 {[%clk 0:00:20]}  Bb8 {[%clk 0:00:03]} 36. Qe2 {[%clk 0:00:16]}  Qf5 {[%clk 0:00:03]} 37. Qg4 {[%clk 0:00:14]}  Qd3 {[%clk 0:00:03]} 38. Ne5+ {[%clk 0:00:12]}  Rxe5 {[%clk 0:00:04]} 39. fxe5 {[%clk 0:00:06]}  Qxd2+ {[%clk 0:00:04]} 40. Re2 {[%clk 0:00:07]}  Ne4+ {[%clk 0:00:05]} 41. Qxe4 {[%clk 0:00:05]}  Qxe2+ {[%clk 0:00:05]} 42. Kxe2 {[%clk 0:00:06]}  dxe4 {[%clk 0:00:05]} 43. Rf1 {[%clk 0:00:06]}  Re6 {[%clk 0:00:04]} 44. Kd2 {[%clk 0:00:04]}  Kg6 {[%clk 0:00:03]} 45. exf6 {[%clk 0:00:05]}  Rxf6 {[%clk 0:00:04]} 46. Rxf6+ {[%clk 0:00:03]}  Kxf6 {[%clk 0:00:05]} 47. Kc3 {[%clk 0:00:04]}  Kf5 {[%clk 0:00:05]} 48. Kc4 {[%clk 0:00:04]}  Ba7 {[%clk 0:00:06]} 49. h5 {[%clk 0:00:02]}  Kg5 {[%clk 0:00:06]} 50. b5 {[%clk 0:00:02]}  cxb5+ {[%clk 0:00:06]} 51. Kxb5 {[%clk 0:00:03]}  Kxh5 {[%clk 0:00:06]} 52. d5 {[%clk 0:00:03]}  Kg5 {[%clk 0:00:02]} 53. d6 {[%clk 0:00:04]}  Kf6 {[%clk 0:00:00]} 54. Kc6 {[%clk 0:00:03]} 1-0

[Event "December 5 Early 2023"]
[Site "https://www.chess.com"]
[Date "2023.12.05"]
[Round "6"]
[White "Matlakov, Maxim"]
[Black "Le, Tuan Minh"]
[Result "0-1"]
[Board "4"]
[TimeControl "180+1"]
[WhiteFideId "4168003"]
[BlackFideId "12401153"]
[WhiteElo "2996"]
[BlackElo "3066"]
[WhiteTeam "RUS"]
[BlackTeam "VIE"]
[WhiteClock "0:00:02"]
[BlackClock "0:00:06"]

1. d4 {[%clk 0:03:00]}  d5 {[%clk 0:03:00]} 2. Nf3 {[%clk 0:02:54]}  Nf6 {[%clk 0:03:00]} 3. Bg5 {[%clk 0:02:55]}  c6 {[%clk 0:02:54]} 4. Nbd2 {[%clk 0:02:53]}  Qb6 {[%clk 0:02:44]} 5. e3 {[%clk 0:02:52]}  Bg4 {[%clk 0:02:43]} 6. Be2 {[%clk 0:02:45]}  Nbd7 {[%clk 0:02:42]} 7. O-O {[%clk 0:02:45]}  e6 {[%clk 0:02:40]} 8. c4 {[%clk 0:02:45]}  Be7 {[%clk 0:02:31]} 9. c5 {[%clk 0:02:45]}  Qd8 {[%clk 0:02:30]} 10. b4 {[%clk 0:02:44]}  Bxf3 {[%clk 0:02:25]} 11. Nxf3 {[%clk 0:02:40]}  Ne4 {[%clk 0:02:25]} 12. Bxe7 {[%clk 0:02:37]}  Qxe7 {[%clk 0:02:26]} 13. Bd3 {[%clk 0:02:35]}  f5 {[%clk 0:02:25]} 14. b5 {[%clk 0:02:35]}  O-O {[%clk 0:02:24]} 15. bxc6 {[%clk 0:02:34]}  bxc6 {[%clk 0:02:24]} 16. Qa4 {[%clk 0:02:34]}  Rfc8 {[%clk 0:02:20]} 17. Ba6 {[%clk 0:02:31]}  Rc7 {[%clk 0:02:17]} 18. Qa5 {[%clk 0:02:31]}  Nf8 {[%clk 0:02:01]} 19. Rab1 {[%clk 0:02:29]}  Ng6 {[%clk 0:02:00]} 20. Rb2 {[%clk 0:02:27]}  f4 {[%clk 0:01:46]} 21. Bd3 {[%clk 0:02:24]}  Rf8 {[%clk 0:01:42]} 22. Bxe4 {[%clk 0:01:56]}  dxe4 {[%clk 0:01:43]} 23. Nd2 {[%clk 0:01:56]}  fxe3 {[%clk 0:01:39]} 24. fxe3 {[%clk 0:01:56]}  Rxf1+ {[%clk 0:01:40]} 25. Nxf1 {[%clk 0:01:50]}  e5 {[%clk 0:01:40]} 26. Rb8+ {[%clk 0:01:46]}  Kf7 {[%clk 0:01:38]} 27. Ng3 {[%clk 0:01:39]}  Rd7 {[%clk 0:01:28]} 28. Qa4 {[%clk 0:00:54]}  exd4 {[%clk 0:01:21]} 29. exd4 {[%clk 0:00:33]}  e3 {[%clk 0:01:04]} 30. Qxc6 {[%clk 0:00:32]}  Nf4 {[%clk 0:00:38]} 31. Qf3 {[%clk 0:00:28]}  g5 {[%clk 0:00:39]} 32. h4 {[%clk 0:00:27]}  e2 {[%clk 0:00:39]} 33. Nxe2 {[%clk 0:00:23]}  Qxe2 {[%clk 0:00:39]} 34. c6 {[%clk 0:00:17]}  Qe1+ {[%clk 0:00:16]} 35. Qf1 {[%clk 0:00:17]}  Qe3+ {[%clk 0:00:17]} 36. Kh2 {[%clk 0:00:16]}  Re7 {[%clk 0:00:14]} 37. Qc4+ {[%clk 0:00:14]}  Kg6 {[%clk 0:00:13]} 38. Rg8+ {[%clk 0:00:08]}  Kh6 {[%clk 0:00:10]} 39. Rxg5 {[%clk 0:00:06]}  Qf2 {[%clk 0:00:07]} 40. Rg4 {[%clk 0:00:06]}  Ne2 {[%clk 0:00:05]} 41. Rg5 {[%clk 0:00:01]}  Qg1+ {[%clk 0:00:05]} 42. Kh3 {[%clk 0:00:01]}  Re3+ {[%clk 0:00:05]} 43. Kg4 {[%clk 0:00:01]}  Qxg2+ {[%clk 0:00:06]} 44. Kf5 {[%clk 0:00:02]}  Qf3# {[%clk 0:00:06]} 0-1

[Event "December 5 Early 2023"]
[Site "https://www.chess.com"]
[Date "2023.12.05"]
[Round "6"]
[White "Nguyen, Ngoc Truong Son"]
[Black "Paravyan, David"]
[Result "1-0"]
[Board "7"]
[TimeControl "180+1"]
[WhiteFideId "12401110"]
[BlackFideId "4194985"]
[WhiteElo "2943"]
[BlackElo "3009"]
[WhiteTeam "VIE"]
[BlackTeam "FID"]
[WhiteClock "0:00:09"]
[BlackClock "0:00:03"]

1. e4 {[%clk 0:03:00]}  e5 {[%clk 0:03:00]} 2. Nf3 {[%clk 0:03:00]}  Nf6 {[%clk 0:03:00]} 3. Nxe5 {[%clk 0:02:58]}  d6 {[%clk 0:03:00]} 4. Nf3 {[%clk 0:02:59]}  Nxe4 {[%clk 0:03:01]} 5. Nc3 {[%clk 0:02:59]}  Nxc3 {[%clk 0:03:01]} 6. dxc3 {[%clk 0:03:00]}  Be7 {[%clk 0:03:01]} 7. Be3 {[%clk 0:03:00]}  O-O {[%clk 0:03:02]} 8. Qd2 {[%clk 0:03:00]}  Nd7 {[%clk 0:03:02]} 9. O-O-O {[%clk 0:03:00]}  Nf6 {[%clk 0:03:03]} 10. Bd3 {[%clk 0:02:58]}  Re8 {[%clk 0:03:03]} 11. h3 {[%clk 0:02:52]}  Bd7 {[%clk 0:03:02]} 12. Ng5 {[%clk 0:02:37]}  h6 {[%clk 0:03:00]} 13. Ne4 {[%clk 0:02:37]}  Bc6 {[%clk 0:02:56]} 14. Ng3 {[%clk 0:02:22]}  Nd5 {[%clk 0:02:55]} 15. Nf5 {[%clk 0:01:39]}  Nxe3 {[%clk 0:02:55]} 16. fxe3 {[%clk 0:01:40]}  Bf8 {[%clk 0:02:51]} 17. Kb1 {[%clk 0:01:38]}  g6 {[%clk 0:02:49]} 18. Nd4 {[%clk 0:01:38]}  Qg5 {[%clk 0:02:45]} 19. Nxc6 {[%clk 0:01:17]}  bxc6 {[%clk 0:02:46]} 20. Rde1 {[%clk 0:01:13]}  Bg7 {[%clk 0:02:46]} 21. h4 {[%clk 0:01:08]}  Qc5 {[%clk 0:02:46]} 22. c4 {[%clk 0:00:46]}  Rab8 {[%clk 0:02:31]} 23. c3 {[%clk 0:00:46]}  Qa3 {[%clk 0:02:15]} 24. b3 {[%clk 0:00:34]}  a5 {[%clk 0:02:02]} 25. h5 {[%clk 0:00:30]}  a4 {[%clk 0:01:56]} 26. Qb2 {[%clk 0:00:30]}  Qc5 {[%clk 0:01:45]} 27. b4 {[%clk 0:00:30]}  a3 {[%clk 0:01:28]} 28. Qxa3 {[%clk 0:00:29]}  Rxe3 {[%clk 0:01:20]} 29. Kc2 {[%clk 0:00:25]}  Qg5 {[%clk 0:01:16]} 30. Rxe3 {[%clk 0:00:23]}  Qxe3 {[%clk 0:01:15]} 31. Qc1 {[%clk 0:00:18]}  Qe5 {[%clk 0:01:09]} 32. Qe1 {[%clk 0:00:18]}  Qg5 {[%clk 0:01:07]} 33. hxg6 {[%clk 0:00:17]}  fxg6 {[%clk 0:01:03]} 34. Qe6+ {[%clk 0:00:14]}  Kh7 {[%clk 0:01:03]} 35. Re1 {[%clk 0:00:10]}  Rf8 {[%clk 0:00:57]} 36. Re2 {[%clk 0:00:09]}  Rf6 {[%clk 0:00:56]} 37. Qe3 {[%clk 0:00:08]}  Qg4 {[%clk 0:00:50]} 38. Qe4 {[%clk 0:00:07]}  Qg3 {[%clk 0:00:48]} 39. Qxc6 {[%clk 0:00:06]}  d5 {[%clk 0:00:20]} 40. Qxd5 {[%clk 0:00:05]}  Ra6 {[%clk 0:00:21]} 41. Kb3 {[%clk 0:00:04]}  Rd6 {[%clk 0:00:21]} 42. Qf3 {[%clk 0:00:02]}  Rxd3 {[%clk 0:00:17]} 43. Qxg3 {[%clk 0:00:02]}  Rxg3 {[%clk 0:00:18]} 44. Rc2 {[%clk 0:00:01]}  h5 {[%clk 0:00:19]} 45. a4 {[%clk 0:00:01]}  Re3 {[%clk 0:00:02]} 46. a5 {[%clk 0:00:02]}  Re8 {[%clk 0:00:03]} 47. c5 {[%clk 0:00:02]}  Kh6 {[%clk 0:00:04]} 48. b5 {[%clk 0:00:03]}  Bf8 {[%clk 0:00:04]} 49. c6 {[%clk 0:00:03]}  Re5 {[%clk 0:00:03]} 50. c4 {[%clk 0:00:02]}  Re3+ {[%clk 0:00:04]} 51. Kb2 {[%clk 0:00:02]}  Ba3+ {[%clk 0:00:03]} 52. Ka2 {[%clk 0:00:02]}  Bc5 {[%clk 0:00:03]} 53. Kb2 {[%clk 0:00:02]}  Ra3 {[%clk 0:00:03]} 54. a6 {[%clk 0:00:02]}  Ra4 {[%clk 0:00:02]} 55. Kb3 {[%clk 0:00:02]}  Ra3+ {[%clk 0:00:02]} 56. Kb2 {[%clk 0:00:03]}  Ra5 {[%clk 0:00:03]} 57. Kb3 {[%clk 0:00:03]}  Kg5 {[%clk 0:00:02]} 58. Rd2 {[%clk 0:00:04]}  Ra3+ {[%clk 0:00:02]} 59. Kb2 {[%clk 0:00:04]}  Ra4 {[%clk 0:00:03]} 60. Rd5+ {[%clk 0:00:05]}  Kg4 {[%clk 0:00:02]} 61. Rxc5 {[%clk 0:00:06]}  Kg3 {[%clk 0:00:02]} 62. Kb3 {[%clk 0:00:06]}  Ra1 {[%clk 0:00:02]} 63. Rg5+ {[%clk 0:00:07]}  Kf4 {[%clk 0:00:02]} 64. Rxg6 {[%clk 0:00:08]}  Ke4 {[%clk 0:00:03]} 65. Kc3 {[%clk 0:00:08]}  Ra3+ {[%clk 0:00:03]} 66. Kb4 {[%clk 0:00:08]}  Ra1 {[%clk 0:00:03]} 67. Kc5 {[%clk 0:00:09]}  Kf4 {[%clk 0:00:03]} 68. Rg7 {[%clk 0:00:09]}  h4 {[%clk 0:00:03]} 69. Rxc7 {[%clk 0:00:09]}  Kg3 {[%clk 0:00:03]} 70. Rg7+ {[%clk 0:00:09]} 1-0

[Event "December 5 Early 2023"]
[Site "https://www.chess.com"]
[Date "2023.12.05"]
[Round "6"]
[White "Navara, David"]
[Black "Kovalenko, Igor"]
[Result "1-0"]
[Board "8"]
[TimeControl "180+1"]
[WhiteFideId "309095"]
[BlackFideId "14117908"]
[WhiteElo "2977"]
[BlackElo "2922"]
[WhiteTeam "CZE"]
[BlackTeam "UKR"]
[WhiteClock "0:02:00"]
[BlackClock "0:00:48"]

1. e4 {[%clk 0:03:00]}  d5 {[%clk 0:02:15]} 2. exd5 {[%clk 0:03:00]}  Qxd5 {[%clk 0:02:16]} 3. Nc3 {[%clk 0:03:00]}  Qa5 {[%clk 0:02:15]} 4. d4 {[%clk 0:03:01]}  Nf6 {[%clk 0:02:16]} 5. Bd2 {[%clk 0:03:02]}  c6 {[%clk 0:02:16]} 6. Nf3 {[%clk 0:02:55]}  Bf5 {[%clk 0:02:14]} 7. Ne4 {[%clk 0:02:55]}  Qb6 {[%clk 0:02:13]} 8. Nxf6+ {[%clk 0:02:55]}  exf6 {[%clk 0:02:11]} 9. Bc4 {[%clk 0:02:46]}  Be7 {[%clk 0:02:11]} 10. O-O {[%clk 0:02:44]}  O-O {[%clk 0:02:11]} 11. Re1 {[%clk 0:02:38]}  Bd6 {[%clk 0:02:11]} 12. Nh4 {[%clk 0:02:34]}  Bg6 {[%clk 0:02:10]} 13. Qg4 {[%clk 0:02:29]}  Kh8 {[%clk 0:01:08]} 14. Re3 {[%clk 0:02:01]}  Qxb2 {[%clk 0:01:02]} 15. Bc3 {[%clk 0:02:01]}  Qb3 {[%clk 0:00:48]} 16. Bxb3 {[%clk 0:02:00]} 1-0

[Event "December 5 Early 2023"]
[Site "https://www.chess.com"]
[Date "2023.12.05"]
[Round "6"]
[White "Finek, Vaclav"]
[Black "Nakamura, Hikaru"]
[Result "0-1"]
[Board "10"]
[TimeControl "180+1"]
[WhiteFideId "23718293"]
[BlackFideId "2016192"]
[WhiteElo "2842"]
[BlackElo "3246"]
[WhiteTeam "CZE"]
[BlackTeam "USA"]
[WhiteClock "0:00:05"]
[BlackClock "0:01:05"]

1. d4 {[%clk 0:03:00]}  g6 {[%clk 0:02:57]} 2. Nf3 {[%clk 0:03:00]}  Bg7 {[%clk 0:02:57]} 3. g3 {[%clk 0:03:01]}  d6 {[%clk 0:02:58]} 4. Bg2 {[%clk 0:03:01]}  Bd7 {[%clk 0:02:59]} 5. O-O {[%clk 0:03:02]}  Qc8 {[%clk 0:02:59]} 6. c4 {[%clk 0:03:03]}  Nc6 {[%clk 0:03:00]} 7. Nc3 {[%clk 0:03:03]}  Bh3 {[%clk 0:03:01]} 8. e4 {[%clk 0:02:55]}  h5 {[%clk 0:03:00]} 9. d5 {[%clk 0:02:43]}  Ne5 {[%clk 0:02:59]} 10. Nxe5 {[%clk 0:02:44]}  Bxe5 {[%clk 0:03:00]} 11. f4 {[%clk 0:02:44]}  Bxc3 {[%clk 0:03:00]} 12. bxc3 {[%clk 0:02:44]}  h4 {[%clk 0:03:01]} 13. f5 {[%clk 0:02:42]}  hxg3 {[%clk 0:03:01]} 14. Bxh3 {[%clk 0:02:03]}  Rxh3 {[%clk 0:03:02]} 15. Qg4 {[%clk 0:02:03]}  gxh2+ {[%clk 0:02:45]} 16. Kh1 {[%clk 0:02:01]}  Rh5 {[%clk 0:02:17]} 17. Bg5 {[%clk 0:01:43]}  Qd7 {[%clk 0:02:08]} 18. Rf4 {[%clk 0:01:09]}  O-O-O {[%clk 0:01:57]} 19. fxg6 {[%clk 0:01:08]}  Qxg4 {[%clk 0:01:55]} 20. Rxg4 {[%clk 0:01:09]}  fxg6 {[%clk 0:01:55]} 21. Rf1 {[%clk 0:01:09]}  Kd7 {[%clk 0:01:48]} 22. c5 {[%clk 0:00:54]}  dxc5 {[%clk 0:01:24]} 23. e5 {[%clk 0:00:51]}  Nh6 {[%clk 0:01:24]} 24. Bxh6 {[%clk 0:00:47]}  Rxh6 {[%clk 0:01:24]} 25. Rf7 {[%clk 0:00:48]}  Rh5 {[%clk 0:01:19]} 26. e6+ {[%clk 0:00:27]}  Kd6 {[%clk 0:01:19]} 27. c4 {[%clk 0:00:27]}  Rdh8 {[%clk 0:01:17]} 28. Rxg6 {[%clk 0:00:26]}  Re5 {[%clk 0:01:17]} 29. Rf1 {[%clk 0:00:26]}  Re4 {[%clk 0:01:11]} 30. Rc1 {[%clk 0:00:25]}  Re2 {[%clk 0:01:11]} 31. a4 {[%clk 0:00:20]}  Ra2 {[%clk 0:01:10]} 32. Rg4 {[%clk 0:00:16]}  Rxa4 {[%clk 0:01:09]} 33. Rb1 {[%clk 0:00:16]}  Rb4 {[%clk 0:01:09]} 34. Ra1 {[%clk 0:00:16]}  a5 {[%clk 0:01:09]} 35. Re4 {[%clk 0:00:14]}  b5 {[%clk 0:01:09]} 36. Ree1 {[%clk 0:00:15]}  bxc4 {[%clk 0:01:07]} 37. Rxa5 {[%clk 0:00:15]}  c3 {[%clk 0:01:07]} 38. Rc1 {[%clk 0:00:13]}  c2 {[%clk 0:01:07]} 39. Ra2 {[%clk 0:00:12]}  Rb1 {[%clk 0:01:04]} 40. Rxc2 {[%clk 0:00:13]}  Rxc1+ {[%clk 0:01:04]} 41. Rxc1 {[%clk 0:00:14]}  Kxd5 {[%clk 0:01:05]} 42. Rc2 {[%clk 0:00:13]}  c4 {[%clk 0:01:05]} 43. Re2 {[%clk 0:00:11]}  c3 {[%clk 0:01:05]} 44. Rc2 {[%clk 0:00:11]}  Kc4 {[%clk 0:01:05]} 45. Rc1 {[%clk 0:00:10]}  Kb3 {[%clk 0:01:05]} 46. Rf1 {[%clk 0:00:05]}  c2 {[%clk 0:01:05]} 0-1

[Event "December 5 Early 2023"]
[Site "https://www.chess.com"]
[Date "2023.12.05"]
[Round "6"]
[White "Bortnyk, Olexandr"]
[Black "Vakhlamov, Igor L."]
[Result "1-0"]
[Board "11"]
[TimeControl "180+1"]
[WhiteFideId "14120828"]
[BlackFideId "24126748"]
[WhiteElo "3071"]
[BlackElo "2835"]
[WhiteTeam "UKR"]
[BlackTeam "RUS"]
[WhiteClock "0:00:56"]
[BlackClock "0:00:20"]

1. e4 {[%clk 0:03:00]}  c5 {[%clk 0:02:58]} 2. c3 {[%clk 0:02:59]}  g6 {[%clk 0:02:58]} 3. d4 {[%clk 0:02:56]}  cxd4 {[%clk 0:02:59]} 4. cxd4 {[%clk 0:02:57]}  d5 {[%clk 0:02:58]} 5. exd5 {[%clk 0:02:57]}  Bg7 {[%clk 0:02:58]} 6. Nc3 {[%clk 0:02:54]}  Nf6 {[%clk 0:02:58]} 7. Bc4 {[%clk 0:02:47]}  O-O {[%clk 0:02:56]} 8. Nge2 {[%clk 0:02:48]}  Na6 {[%clk 0:02:50]} 9. O-O {[%clk 0:02:45]}  Nc7 {[%clk 0:02:50]} 10. Nf4 {[%clk 0:02:46]}  b6 {[%clk 0:02:11]} 11. Re1 {[%clk 0:02:41]}  Bb7 {[%clk 0:02:11]} 12. Qb3 {[%clk 0:02:41]}  Rc8 {[%clk 0:01:26]} 13. a4 {[%clk 0:02:32]}  Ba8 {[%clk 0:01:20]} 14. h3 {[%clk 0:02:28]}  Qd7 {[%clk 0:01:13]} 15. a5 {[%clk 0:01:53]}  b5 {[%clk 0:00:55]} 16. Bxb5 {[%clk 0:01:53]}  Nxb5 {[%clk 0:00:54]} 17. Qxb5 {[%clk 0:01:54]}  Qd6 {[%clk 0:00:46]} 18. Bd2 {[%clk 0:01:54]}  Rc7 {[%clk 0:00:42]} 19. Qe2 {[%clk 0:01:44]}  Nxd5 {[%clk 0:00:35]} 20. Nfxd5 {[%clk 0:01:44]}  Bxd5 {[%clk 0:00:36]} 21. Nb5 {[%clk 0:01:44]}  Bc4 {[%clk 0:00:31]} 22. Nxd6 {[%clk 0:01:28]}  Bxe2 {[%clk 0:00:30]} 23. Bf4 {[%clk 0:01:03]}  Ba6 {[%clk 0:00:20]} 24. Nf5 {[%clk 0:01:01]}  Rb7 {[%clk 0:00:13]} 25. Nxe7+ {[%clk 0:00:57]}  Kh8 {[%clk 0:00:12]} 26. d5 {[%clk 0:00:55]}  Bxb2 {[%clk 0:00:12]} 27. Rab1 {[%clk 0:00:50]}  f6 {[%clk 0:00:11]} 28. d6 {[%clk 0:00:47]}  Kg7 {[%clk 0:00:06]} 29. Nc6 {[%clk 0:00:44]}  Bc3 {[%clk 0:00:05]} 30. Rxb7+ {[%clk 0:00:42]}  Bxb7 {[%clk 0:00:06]} 31. Re7+ {[%clk 0:00:43]}  Rf7 {[%clk 0:00:06]} 32. Rxf7+ {[%clk 0:00:44]}  Kxf7 {[%clk 0:00:07]} 33. Nd8+ {[%clk 0:00:44]}  Ke8 {[%clk 0:00:05]} 34. Nxb7 {[%clk 0:00:45]}  Be5 {[%clk 0:00:03]} 35. Bxe5 {[%clk 0:00:45]}  fxe5 {[%clk 0:00:04]} 36. Nc5 {[%clk 0:00:46]}  e4 {[%clk 0:00:04]} 37. Kf1 {[%clk 0:00:46]}  e3 {[%clk 0:00:05]} 38. fxe3 {[%clk 0:00:47]}  a6 {[%clk 0:00:05]} 39. e4 {[%clk 0:00:47]}  g5 {[%clk 0:00:06]} 40. e5 {[%clk 0:00:48]}  g4 {[%clk 0:00:07]} 41. hxg4 {[%clk 0:00:48]}  h5 {[%clk 0:00:07]} 42. gxh5 {[%clk 0:00:49]}  Kf7 {[%clk 0:00:07]} 43. g4 {[%clk 0:00:48]}  Kg7 {[%clk 0:00:08]} 44. g5 {[%clk 0:00:49]}  Kh7 {[%clk 0:00:08]} 45. Ke2 {[%clk 0:00:50]}  Kg7 {[%clk 0:00:09]} 46. Kd3 {[%clk 0:00:51]}  Kf7 {[%clk 0:00:10]} 47. Kc4 {[%clk 0:00:52]}  Kf8 {[%clk 0:00:10]} 48. Kd5 {[%clk 0:00:53]}  Ke8 {[%clk 0:00:11]} 49. Kc6 {[%clk 0:00:54]}  Kd8 {[%clk 0:00:12]} 50. Kb6 {[%clk 0:00:55]}  Kc8 {[%clk 0:00:13]} 51. Kxa6 {[%clk 0:00:55]}  Kb8 {[%clk 0:00:14]} 52. Kb6 {[%clk 0:00:56]}  Ka8 {[%clk 0:00:15]} 53. e6 {[%clk 0:00:57]}  Kb8 {[%clk 0:00:15]} 54. g6 {[%clk 0:00:58]}  Kc8 {[%clk 0:00:16]} 55. h6 {[%clk 0:00:59]}  Kd8 {[%clk 0:00:17]} 56. a6 {[%clk 0:01:00]}  Ke8 {[%clk 0:00:17]} 57. Ne4 {[%clk 0:01:01]}  Kf8 {[%clk 0:00:18]} 58. a7 {[%clk 0:00:56]}  Kg8 {[%clk 0:00:19]} 59. Nf6+ {[%clk 0:00:56]}  Kh8 {[%clk 0:00:20]} 60. a8=Q# {[%clk 0:00:56]} 1-0

[Event "December 5 Early 2023"]
[Site "https://www.chess.com"]
[Date "2023.12.05"]
[Round "6"]
[White "Bocharov, Dmitry"]
[Black "Svane, Rasmus"]
[Result "1-0"]
[Board "17"]
[TimeControl "180+1"]
[WhiteFideId "4138716"]
[BlackFideId "4657101"]
[WhiteElo "2819"]
[BlackElo "2937"]
[WhiteTeam "RUS"]
[BlackTeam "GER"]
[WhiteClock "0:01:01"]
[BlackClock "0:00:20"]

1. c4 {[%clk 0:03:00]}  e6 {[%clk 0:02:58]} 2. g3 {[%clk 0:02:59]}  d5 {[%clk 0:02:58]} 3. Bg2 {[%clk 0:03:00]}  Nf6 {[%clk 0:02:58]} 4. Nf3 {[%clk 0:03:00]}  Be7 {[%clk 0:02:55]} 5. d4 {[%clk 0:03:00]}  O-O {[%clk 0:02:55]} 6. Nc3 {[%clk 0:03:00]}  Nbd7 {[%clk 0:02:53]} 7. Qd3 {[%clk 0:02:56]}  Nb6 {[%clk 0:02:35]} 8. c5 {[%clk 0:02:37]}  Nbd7 {[%clk 0:02:28]} 9. O-O {[%clk 0:02:34]}  b6 {[%clk 0:02:17]} 10. c6 {[%clk 0:02:07]}  Nb8 {[%clk 0:02:16]} 11. Ne5 {[%clk 0:02:07]}  Bd6 {[%clk 0:01:29]} 12. Bg5 {[%clk 0:02:06]}  h6 {[%clk 0:01:18]} 13. Bxf6 {[%clk 0:02:05]}  Qxf6 {[%clk 0:01:16]} 14. f4 {[%clk 0:01:31]}  Qe7 {[%clk 0:01:16]} 15. Rac1 {[%clk 0:01:25]}  Qe8 {[%clk 0:01:04]} 16. f5 {[%clk 0:01:15]}  Bxe5 {[%clk 0:00:56]} 17. dxe5 {[%clk 0:01:15]}  Nxc6 {[%clk 0:00:55]} 18. f6 {[%clk 0:01:15]}  Nxe5 {[%clk 0:00:53]} 19. Qd4 {[%clk 0:01:11]}  gxf6 {[%clk 0:00:53]} 20. Rxf6 {[%clk 0:01:10]}  Ng6 {[%clk 0:00:51]} 21. Nxd5 {[%clk 0:01:06]}  exd5 {[%clk 0:00:40]} 22. Bxd5 {[%clk 0:01:05]}  Be6 {[%clk 0:00:39]} 23. Bxa8 {[%clk 0:01:03]}  Qxa8 {[%clk 0:00:39]} 24. Rxc7 {[%clk 0:01:02]}  Rd8 {[%clk 0:00:20]} 25. Rxg6+ {[%clk 0:01:01]} 1-0